bitfinex/quotes_ETHUSD_20250824
["timestamp","ask_amount","ask_price","bid_price","bid_amount"]
[1756034150245,4.13486936,4745.4,4745.3,0.001]
[1756034150752,7.70086936,4745.4,4745.3,0.001]
[1756034151111,7.370994,4745.4,4745.3,0.001]
[1756034151859,6.650494,4745.4,4745.3,0.001]
[1756034152063,3.084494,4745.4,4745.3,0.001]
[1756034154251,3.41435288,4745.4,4745.3,0.001]
[1756034156588,3.86055288,4745.4,4745.3,0.001]
[1756034157441,4.16485288,4745.4,4745.3,0.001]
[1756034158172,4.16485288,4745.4,4745.3,3.921]
[1756034160187,4.16485288,4745.4,4745.3,0.001]
[1756034160390,7.73085288,4745.4,4745.3,0.001]
[1756034162574,4.16485288,4745.4,4745.3,0.001]
[1756034162775,3.41435288,4745.4,4745.3,0.001]
[1756034163358,0.41435288,4745.4,4745.3,0.001]
[1756034165459,0.32985888,4745.4,4745.3,0.001]
[1756034168485,0.002,4746.4,4745.3,0.001]
[1756034168650,0.635468,4746.3,4745.4,3.566]
[1756034168851,0.635468,4746.3,4745.5,0.43726]
[1756034169952,0.4462,4746.2,4745.5,0.43726]
[1756034170147,0.4462,4746.2,4745.4,3.566]
[1756034170365,0.3043,4745.6,4745.4,3.566]
[1756034170884,0.4462,4745.5,4745.4,3.566]
[1756034171655,0.7505,4745.5,4745.4,3.566]
[1756034172079,1.384079,4745.5,4745.4,3.566]
[1756034172581,0.002,4746.3,4745.4,3.566]
[1756034172883,0.633579,4745.6,4745.4,3.566]
[1756034173097,0.633579,4745.6,4745.4,3.9267]
[1756034174157,1.079779,4745.6,4745.4,3.9267]
[1756034175600,1.079779,4745.6,4745.3,0.001]
[1756034175601,0.7505,4745.5,4745.3,0.001]
[1756034175784,1.384198,4745.5,4745.3,0.001]
[1756034175968,0.4462,4745.4,4745.3,0.001]
[1756034176163,0.7505,4745.4,4745.1,0.04]
[1756034176469,0.7505,4745.4,4744.3,0.001]
[1756034176680,0.4462,4745.3,4744.3,0.001]
[1756034176899,0.3043,4744.9,4744.3,0.001]
[1756034177294,0.63419092,4744.9,4744.3,0.001]
[1756034177496,1.08039092,4744.9,4744.3,0.001]
[1756034177929,31.08039092,4744.9,4744.3,0.001]
[1756034178222,34.08039092,4744.9,4744.3,0.001]
[1756034179501,33.7505,4744.9,4744.3,0.001]
[1756034180827,37.3155,4744.9,4744.3,0.001]
[1756034182334,37.400013,4744.9,4744.3,0.001]
[1756034182934,37.7299313,4744.9,4744.3,0.001]
[1756034183533,39.3509313,4744.9,4744.3,0.001]
[1756034183731,35.7859313,4744.9,4744.3,0.001]
[1756034184035,39.3509313,4744.9,4744.3,0.001]
[1756034186603,9.3509313,4744.9,4744.3,0.001]
[1756034186805,35.7859313,4744.9,4744.3,0.001]
[1756034187007,39.3509313,4744.9,4744.3,0.001]
[1756034187928,40.90051284,4744.9,4744.3,0.001]
[1756034188328,41.66669023,4744.9,4744.3,0.001]
[1756034188534,41.33677193,4744.9,4744.3,0.001]
[1756034188750,41.61905802,4744.9,4744.3,0.001]
[1756034189148,42.27905802,4744.9,4744.3,0.001]
[1756034189446,42.84452801,4744.9,4744.3,0.001]
[1756034190165,42.27905802,4744.9,4744.3,0.001]
[1756034191763,42.60902851,4744.9,4744.3,0.001]
[1756034192559,42.60838525,4744.9,4744.3,0.001]
[1756034193058,43.39382227,4744.9,4744.3,0.001]
[1756034193231,42.82835228,4744.9,4744.3,0.001]
[1756034194062,42.60838525,4744.9,4744.3,0.001]
[1756034195158,43.17208192,4744.9,4744.3,0.001]
[1756034196565,43.31208192,4744.9,4744.3,0.001]
[1756034199367,42.74838525,4744.9,4744.3,0.001]
[1756034200087,3.66,4744.8,4744.3,0.001]
[1756034200248,5.2265,4744.4,4744.3,0.001]
[1756034200447,49.63190176,4744.4,4744.3,0.001]
[1756034200645,50.32956076,4744.4,4744.3,0.001]
[1756034201475,53.89945011,4744.4,4744.3,0.001]
[1756034202482,53.89944569,4744.4,4744.3,0.001]
[1756034202781,52.77152337,4744.4,4744.3,0.001]
[1756034202979,52.77148913,4744.4,4744.3,0.001]
[1756034203276,53.10145491,4744.4,4744.3,0.001]
[1756034203479,60.10145491,4744.4,4744.3,0.001]
[1756034205182,0.28228609,4744.3,4743.9,0.001]
[1756034205388,8.7925,4744.2,4743.9,0.001]
[1756034205585,40.12177752,4744.2,4743.9,0.001]
[1756034205886,40.679719,4744.2,4743.9,0.001]
[1756034206083,37.113719,4744.2,4743.9,0.001]
[1756034206286,40.679719,4744.2,4743.9,0.001]
[1756034206671,42.901719,4744.2,4743.9,0.001]
[1756034206882,40.679719,4744.2,4743.9,0.001]
[1756034208488,40.819719,4744.2,4743.9,0.001]
[1756034208983,50.330719,4744.2,4743.9,0.001]
[1756034209183,50.33089846,4744.2,4743.9,0.001]
[1756034210791,50.43649846,4744.2,4743.9,0.001]
[1756034211568,51.94748419,4744.2,4743.9,0.001]
[1756034211892,52.0577254,4744.2,4743.9,0.001]
[1756034212413,50.54676063,4744.2,4743.9,0.001]
[1756034212643,7.65,4744.0,4743.9,0.001]
[1756034212901,45.748588,4744.0,4743.9,0.001]
[1756034213203,47.03481454,4744.0,4743.9,0.001]
[1756034213868,45.14976166,4744.0,4743.9,0.001]
[1756034214263,44.73434666,4744.0,4743.9,0.001]
[1756034214498,45.56445319,4744.0,4743.9,0.001]
[1756034215136,4.15,4743.8,4742.8,0.02]
[1756034215435,2.347,4742.9,4742.8,0.02]
[1756034215735,41.13037369,4742.9,4742.8,0.02]
[1756034216036,42.11569354,4742.9,4742.8,0.02]
[1756034216233,42.44581911,4742.9,4742.8,0.02]
[1756034216737,42.7281052,4742.9,4742.8,0.02]
[1756034216932,42.83330282,4742.9,4742.8,0.02]
[1756034217105,39.26730282,4742.9,4742.8,0.02]
[1756034217437,41.78901673,4742.9,4742.8,0.02]
[1756034217625,48.92901673,4742.9,4742.8,0.02]
[1756034217809,45.36301673,4742.9,4742.8,0.02]
[1756034218012,46.12501673,4742.9,4742.8,0.02]
[1756034218348,49.69201673,4742.9,4742.8,0.02]
[1756034218509,49.37861673,4742.9,4742.8,0.02]
[1756034218709,48.27001673,4742.9,4742.8,0.02]
[1756034218922,48.93001128,4742.9,4742.8,0.02]
[1756034219432,48.92901128,4742.9,4742.8,0.02]
[1756034219651,48.59888571,4742.9,4742.8,0.02]
[1756034220556,48.31730417,4742.9,4742.8,0.02]
[1756034221362,18.31762252,4742.9,4742.8,0.02]
[1756034221530,18.59920406,4742.9,4742.8,0.02]
[1756034221732,48.60020406,4742.9,4742.8,0.02]
[1756034221932,48.60021682,4742.9,4742.8,0.02]
[1756034222258,48.60019002,4742.9,4742.8,0.02]
[1756034222756,49.21255929,4742.9,4742.8,0.02]
[1756034223053,49.97455929,4742.9,4742.8,0.02]
[1756034225265,1.928,4742.2,4740.1,0.04]
[1756034225446,39.05369101,4742.2,4740.1,0.04]
[1756034225784,39.7874074,4742.2,4740.1,0.04]
[1756034226065,37.39037045,4742.2,4740.1,0.04]
[1756034226359,40.95637045,4742.2,4740.1,0.04]
[1756034227166,37.99254326,4742.2,4740.1,0.04]
[1756034227366,44.99254326,4742.2,4740.1,0.04]
[1756034227876,41.42654326,4742.2,4741.1,0.041]
[1756034228046,44.99254326,4742.2,4741.1,0.041]
[1756034228579,40.91627649,4742.2,4741.1,0.041]
[1756034228778,40.60287649,4742.2,4741.1,0.041]
[1756034229086,40.60287649,4742.2,4741.6,0.001]
[1756034229779,40.15427649,4742.2,4741.6,0.001]
[1756034230282,40.15427649,4742.2,4742.1,0.041]
[1756034231082,40.15503745,4742.2,4742.1,0.041]
[1756034231580,35.92903745,4742.2,4742.1,0.041]
[1756034231790,33.97909932,4742.2,4742.1,0.041]
[1756034231989,37.99332975,4742.2,4742.1,0.041]
[1756034233161,34.42732975,4742.2,4742.1,0.041]
[1756034233351,7.87522922,4742.2,4742.1,0.041]
[1756034234695,8.93499776,4742.2,4742.1,0.041]
[1756034235063,8.81681076,4742.2,4742.1,0.041]
[1756034235265,38.93499276,4742.2,4742.1,0.041]
[1756034236162,37.99341122,4742.2,4742.1,0.041]
[1756034236788,39.53067885,4742.2,4742.1,0.041]
[1756034236965,37.68127885,4742.2,4742.1,0.041]
[1756034237168,41.24727885,4742.2,4742.1,0.041]
[1756034238291,42.37861233,4742.2,4742.1,0.041]
[1756034238486,36.91927885,4742.2,4742.1,0.041]
[1756034238680,40.48527885,4742.2,4742.1,0.041]
[1756034240067,41.24727885,4742.2,4742.1,0.041]
[1756034240472,42.37861233,4742.2,4742.1,0.041]
[1756034240975,41.24778633,4742.2,4742.1,0.041]
[1756034241301,11.24778633,4742.2,4742.1,0.041]
[1756034241492,10.91772645,4742.2,4742.1,0.041]
[1756034242071,7.32792645,4742.2,4742.1,0.041]
[1756034242269,10.89392645,4742.2,4742.1,0.041]
[1756034242468,40.89392645,4742.2,4742.1,0.041]
[1756034242673,37.32792645,4742.2,4742.1,0.041]
[1756034242872,41.29175723,4742.2,4742.1,0.041]
[1756034243073,41.58135723,4742.2,4742.1,0.041]
[1756034243379,40.91682645,4742.2,4742.1,0.041]
[1756034243574,40.91682645,4742.2,4741.6,0.001]
[1756034243575,0.66,4741.9,4741.6,0.001]
[1756034243892,41.84374345,4741.9,4741.6,0.001]
[1756034244093,42.31524345,4741.9,4741.6,0.001]
[1756034244296,42.31521563,4741.9,4741.6,0.001]
[1756034246204,42.51229991,4741.9,4741.6,0.001]
[1756034246921,42.65229991,4741.9,4741.6,0.001]
[1756034247086,49.65229991,4741.9,4741.6,0.001]
[1756034247288,46.08629991,4741.9,4741.6,0.001]
[1756034247512,49.65229991,4741.9,4741.6,0.001]
[1756034248392,19.65229991,4741.9,4741.6,0.001]
[1756034248714,49.65229991,4741.9,4741.6,0.001]
[1756034248914,49.76264091,4741.9,4741.6,0.001]
[1756034249631,46.19664091,4741.9,4741.6,0.001]
[1756034249834,49.76264091,4741.9,4741.6,0.001]
[1756034250609,49.56490929,4741.9,4741.6,0.001]
[1756034250800,49.7616975,4741.9,4741.6,0.001]
[1756034251206,49.76175951,4741.9,4741.6,0.001]
[1756034251619,49.65141851,4741.9,4741.6,0.001]
[1756034251935,49.92296309,4741.9,4741.6,0.001]
[1756034252317,50.00756509,4741.9,4741.6,0.001]
[1756034252513,20.00756509,4741.9,4741.6,0.001]
[1756034253040,50.00756509,4741.9,4741.6,0.001]
[1756034253637,1.928,4741.7,4741.6,0.001]
[1756034253840,45.52431851,4741.7,4741.6,0.001]
[1756034254039,45.99581851,4741.7,4741.6,0.001]
[1756034254588,16.41063878,4741.7,4741.6,0.001]
[1756034254725,2.882,4741.5,4739.8,0.27]
[1756034254927,2.882,4739.6,4737.9,1.24227826]
[1756034255129,0.66,4737.9,4737.1,0.04]
[1756034255374,2.2176,4737.2,4737.1,0.04]
[1756034255515,1.928,4736.9,4735.9,0.91270106]
[1756034255876,1.928,4736.0,4735.9,0.91270106]
[1756034256016,38.1047026,4736.0,4735.9,0.48495306]
[1756034256352,38.1047026,4736.0,4735.9,0.43495306]
[1756034256558,42.73952597,4736.0,4735.9,0.86795306]
[1756034256714,37.82552597,4736.0,4735.9,0.86795306]
[1756034256914,41.25904061,4736.0,4735.9,0.43495306]
[1756034257157,40.12712444,4736.0,4735.9,0.43495306]
[1756034257364,47.79687517,4736.0,4735.9,0.43495306]
[1756034257655,47.03400464,4736.0,4735.9,0.86795306]
[1756034257858,46.71954258,4736.0,4735.9,0.86795306]
[1756034258164,43.07554258,4736.0,4735.9,0.43495306]
[1756034258322,42.31485075,4736.0,4735.9,0.86795306]
[1756034258527,5.83047589,4736.0,4735.9,1.00664837]
[1756034259157,35.31466049,4736.0,4735.9,0.43495306]
[1756034259326,39.65066049,4736.0,4735.9,0.86795306]
[1756034259526,38.99066049,4736.0,4735.9,0.86795306]
[1756034259750,38.83047589,4736.0,4735.9,0.86795306]
[1756034259970,9.96226227,4736.0,4735.9,0.86795306]
[1756034260176,1.65226227,4736.0,4735.9,1.00664837]
[1756034260480,4.41413807,4736.0,4735.9,1.00664837]
[1756034260682,4.41713807,4736.0,4735.9,0.86795306]
[1756034260880,8.53792445,4736.0,4735.9,0.86795306]
[1756034261185,7.22247589,4736.0,4735.9,0.86795306]
[1756034261481,7.41698405,4736.0,4735.9,0.86795306]
[1756034261781,7.41698437,4736.0,4735.9,0.86795306]
[1756034262283,8.53777075,4736.0,4735.9,0.86795306]
[1756034262494,38.07698437,4736.0,4735.9,0.43495306]
[1756034263251,3.66,4735.9,4735.8,0.021]
[1756034263484,34.38598437,4735.9,4735.8,0.021]
[1756034263786,3.66,4735.7,4735.2,0.499]
[1756034263998,0.66,4735.4,4735.2,0.499]
[1756034264160,38.07598437,4735.3,4735.2,0.499]
[1756034264358,39.56664695,4735.3,4735.2,0.7843]
[1756034264590,38.07598437,4735.3,4735.2,0.7843]
[1756034265171,39.67224695,4735.3,4735.2,0.7843]
[1756034265572,40.30749495,4735.3,4735.2,0.7843]
[1756034265786,38.81683237,4735.3,4735.2,0.7843]
[1756034266288,38.15683237,4735.3,4735.2,0.7843]
[1756034266474,38.15683237,4735.3,4735.2,0.499]
[1756034266669,39.42483237,4735.3,4735.2,0.499]
[1756034266974,35.73483237,4735.3,4735.2,0.7843]
[1756034267168,39.42183237,4735.3,4735.2,0.7843]
[1756034267404,39.42183237,4735.3,4735.2,0.499]
[1756034267608,39.42083237,4735.3,4735.2,0.499]
[1756034268106,35.73483237,4735.3,4735.2,0.7843]
[1756034268309,39.42083237,4735.3,4735.2,0.7843]
[1756034268602,34.46683237,4735.3,4735.2,0.7843]
[1756034268810,38.15183237,4735.3,4735.2,0.7843]
[1756034269009,38.15083237,4735.3,4735.2,0.7843]
[1756034269302,34.36123237,4735.3,4732.6,0.66]
[1756034269490,33.64598437,4735.2,4732.6,0.66]
[1756034269696,4.399248,4735.3,4732.6,0.66]
[1756034269697,4.48871333,4735.0,4732.6,0.66]
[1756034269892,7.40998437,4734.9,4734.3,0.3355]
[1756034270074,7.41098437,4734.9,4734.8,0.3555]
[1756034270276,5.2146977,4734.9,4734.8,0.3053]
[1756034270568,35.51846389,4734.9,4734.8,0.2853]
[1756034270774,3.0,4734.8,4733.9,0.3355]
[1756034270997,4.86084499,4734.6,4733.9,0.3355]
[1756034271202,3.0,4734.4,4733.9,0.3355]
[1756034271369,0.72536865,4734.3,4733.6,0.0502]
[1756034271571,3.08,4734.3,4734.2,0.0804]
[1756034271776,7.40543666,4734.3,4734.2,0.0804]
[1756034272177,7.7360784,4734.3,4734.2,0.0804]
[1756034272816,4.0510784,4734.3,4734.2,0.0804]
[1756034272981,7.7360784,4734.3,4734.2,0.1306]
[1756034273480,7.73428788,4734.3,4734.2,0.0804]
[1756034273680,3.0,4734.2,4733.5,0.0502]
[1756034273978,1.48957507,4733.9,4733.5,0.0502]
[1756034274196,3.0,4733.7,4733.5,0.0502]
[1756034274384,4.32443666,4733.6,4732.8,0.02]
[1756034274684,0.40885122,4734.3,4732.8,0.02]
[1756034274685,1.11744101,4733.2,4733.1,0.7]
[1756034274899,0.64043666,4733.2,4733.1,0.162]
[1756034275086,0.64043666,4733.2,4733.1,0.04]
[1756034275407,1.3854595,4733.2,4733.1,0.04]
[1756034275606,0.64043666,4733.2,4733.1,0.04]
[1756034275805,4.32943666,4733.2,4733.1,0.04]
[1756034275989,5.07471808,4733.2,4733.1,0.04]
[1756034276181,4.32843666,4733.2,4733.1,0.04]
[1756034276995,0.64043666,4733.2,4733.1,0.04]
[1756034277202,4.32843666,4733.2,4733.1,0.04]
[1756034277401,4.82843666,4733.2,4733.1,0.04]
[1756034277609,5.94731298,4733.2,4733.1,0.04]
[1756034277779,5.94731196,4733.2,4733.1,0.04]
[1756034278127,3.0,4733.1,4732.8,0.02]
[1756034278291,0.71864614,4733.0,4732.8,0.02]
[1756034278489,0.64043666,4732.9,4732.8,0.02]
[1756034279008,0.07820948,4733.0,4732.8,0.02]
[1756034279009,0.40891116,4733.0,4732.8,0.02]
[1756034279214,0.07820948,4733.0,4732.8,0.138]
[1756034279428,0.07820948,4733.0,4732.9,0.66]
[1756034279599,0.07820948,4733.0,4732.8,0.02]
[1756034280743,1.1949181,4734.0,4733.0,0.66]
[1756034280894,0.635169,4734.0,4733.4,0.66]
[1756034281234,0.1056,4734.5,4733.9,0.66]
[1756034281436,0.1056,4734.5,4734.1,0.66]
[1756034282000,0.5597491,4735.0,4734.1,0.66]
[1756034282205,0.5597491,4734.8,4733.0,0.634985]
[1756034282409,0.3022,4733.1,4730.6,0.005]
[1756034282609,3.6971312,4733.0,4732.0,0.0754]
[1756034283142,0.02,4733.0,4732.9,0.1961]
[1756034283340,0.1056,4733.2,4733.0,0.66]
[1756034283639,0.5597491,4733.8,4733.2,0.66]
[1756034283938,0.1056,4733.6,4733.4,0.66]
[1756034284246,1.4912488,4733.5,4732.9,0.1056]
[1756034284540,1.4912488,4733.7,4733.5,0.1056]
[1756034284745,1.5968488,4734.1,4733.5,0.1056]
[1756034285035,1.12945215,4733.7,4733.6,0.17306]
[1756034285738,0.56480675,4734.0,4733.7,0.5]
[1756034285960,0.56480675,4734.6,4734.1,0.5]
[1756034286108,0.02,4734.8,4734.2,3.055]
[1756034286314,0.02,4734.8,4734.6,0.66]
[1756034287908,0.02,4734.8,4734.7,3.768]
[1756034288156,0.02,4734.8,4734.7,7.428]
[1756034288650,0.02,4734.8,4734.7,7.512636]
[1756034289369,0.02,4734.8,4734.7,8.118236]
[1756034289513,0.56480675,4737.5,4736.2,0.5]
[1756034289752,0.60480675,4737.8,4736.5,0.66]
[1756034289950,0.04,4737.8,4736.8,0.66]
[1756034290283,0.3022,4736.6,4734.7,0.02863866]
[1756034290486,0.3022,4736.6,4732.8,0.521]
[1756034290487,3.0,4736.4,4732.8,0.021]
[1756034290784,35.8727,4736.5,4732.8,0.021]
[1756034290785,0.56480675,4735.9,4732.8,0.021]
[1756034290987,3.0,4735.7,4732.8,0.021]
[1756034291291,3.0,4735.5,4732.8,0.021]
[1756034291488,6.33117905,4735.4,4732.8,0.021]
[1756034291786,0.330598,4735.0,4732.8,0.021]
[1756034292087,0.330598,4735.0,4734.1,0.04]
[1756034292288,0.4727,4734.9,4734.1,0.04]
[1756034293504,0.330598,4735.0,4734.1,0.04]
[1756034295166,0.0192,4734.4,4734.1,0.04]
[1756034295612,0.4727,4734.3,4734.1,0.04]
[1756034295816,0.4727,4734.2,4734.1,0.04]
[1756034296121,0.7749,4734.2,4734.1,0.04]
[1756034296824,0.0192,4734.4,4734.1,0.04]
[1756034298163,0.3022,4734.2,4734.1,0.04]
[1756034298366,0.7749,4734.2,4734.1,0.04]
[1756034298566,0.4727,4734.2,4734.1,0.04]
[1756034300407,0.7749,4734.2,4734.1,0.04]
[1756034300966,0.8805,4734.2,4734.1,0.04]
[1756034302611,0.1056,4734.2,4734.1,0.04]
[1756034303179,0.8412,4734.2,4734.1,0.04]
[1756034305317,0.1056,4734.2,4734.1,0.04]
[1756034307185,0.09944253,4734.2,4734.1,0.04]
[1756034308425,0.1056,4734.2,4734.1,0.04]
[1756034308925,0.1056,4734.2,4734.1,3.96]
[1756034309126,0.1056,4734.2,4734.1,4.356]
[1756034312134,0.1056,4734.2,4734.1,0.436]
[1756034312292,0.1056,4734.2,4734.1,0.04]
[1756034317408,0.1056,4734.2,4734.1,0.7]
[1756034317608,0.0192,4734.4,4734.2,0.66]
[1756034317839,0.1248,4734.4,4734.2,0.66]
[1756034318040,0.0192,4734.4,4734.2,0.66]
[1756034318350,0.0192,4734.4,4734.3,1.12156]
[1756034322900,0.0192,4734.4,4734.3,5.04156]
[1756034323306,0.0192,4734.4,4734.3,1.12156]
[1756034323551,0.0192,4734.4,4734.3,5.04156]
[1756034329439,0.0192,4734.4,4734.3,8.81756]
[1756034330371,0.0192,4734.4,4734.3,4.89756]
[1756034332880,0.3262,4734.4,4734.3,1.12156]
[1756034333169,0.7837,4734.4,4734.3,4.429]
[1756034341156,0.0192,4734.4,4734.3,4.429]
[1756034346505,0.3262,4734.4,4734.3,4.429]
[1756034346808,0.8893,4734.4,4734.3,3.74]
[1756034347107,0.8893,4734.4,4734.3,7.66]
[1756034348996,0.8893,4734.4,4734.1,3.961]
[1756034349307,0.4318,4734.4,4734.3,3.738]
[1756034349605,0.4318,4734.4,4734.3,3.734]
[1756034350313,0.8893,4734.4,4734.3,3.734]
[1756034353404,0.8893,4734.4,4734.3,7.654]
[1756034355778,0.8893,4734.4,4734.3,3.92]
[1756034356516,1.524454,4734.4,4734.3,3.92]
[1756034356700,1.85505712,4734.4,4734.3,3.92]
[1756034358884,1.72097109,4734.4,4734.3,3.92]
[1756034359084,1.72097109,4734.4,4734.1,0.041]
[1756034359315,0.65398233,4734.3,4734.1,0.041]
[1756034359515,0.307,4734.2,4734.1,0.041]
[1756034359720,1.27012408,4734.2,4734.1,0.041]
[1756034360087,1.35482408,4734.2,4734.1,0.041]
[1756034360281,1.80763041,4734.2,4734.1,0.041]
[1756034360542,6.07563041,4734.2,4734.1,0.041]
[1756034360712,6.70234712,4734.2,4734.1,0.041]
[1756034361245,6.85234712,4734.2,4734.1,0.041]
[1756034361528,37.51226438,4734.2,4734.1,0.041]
[1756034361695,38.07707113,4734.2,4734.1,0.041]
[1756034362332,37.51226438,4734.2,4734.1,0.041]
[1756034362532,36.24426438,4734.2,4734.1,0.041]
[1756034363100,39.95726438,4734.2,4734.1,0.041]
[1756034363351,40.2879492,4734.2,4734.1,0.041]
[1756034363642,10.2879492,4734.2,4734.1,0.041]
[1756034363999,40.2879492,4734.2,4734.1,0.041]
[1756034364994,41.5559492,4734.2,4734.1,0.041]
[1756034365199,38.40775595,4734.2,4734.1,0.041]
[1756034365500,42.11775595,4734.2,4734.1,0.041]
[1756034367450,41.5529492,4734.2,4734.1,0.041]
[1756034367749,11.23805362,4734.2,4734.1,0.041]
[1756034367897,41.55116843,4734.2,4734.1,0.041]
[1756034368536,1.268,4734.0,4733.8,0.02]
[1756034368717,42.49129319,4733.9,4733.8,0.02]
[1756034369021,42.67660064,4733.9,4733.8,0.02]
[1756034369200,39.24106739,4733.9,4733.8,0.02]
[1756034369400,42.95006739,4733.9,4733.8,0.02]
[1756034370335,43.69933281,4733.9,4733.8,0.02]
[1756034370504,42.94906739,4733.9,4733.8,0.02]
[1756034371119,42.94606739,4733.9,4733.8,0.02]
[1756034371318,3.66,4733.8,4733.7,0.001]
[1756034371501,3.66,4733.8,4733.1,0.041]
[1756034371502,1.268,4733.2,4733.1,0.041]
[1756034371698,40.65360311,4733.2,4733.1,0.041]
[1756034371938,41.82771281,4733.2,4733.1,0.041]
[1756034372114,41.91246981,4733.2,4733.1,0.041]
[1756034372451,1.268,4732.6,4731.8,0.02]
[1756034372612,1.268,4732.0,4731.8,0.02]
[1756034372814,10.87869041,4731.9,4731.8,0.02]
[1756034373123,41.10279845,4731.9,4731.8,0.02]
[1756034373437,41.80718775,4731.9,4731.8,0.02]
[1756034373742,41.61249105,4731.9,4731.8,0.02]
[1756034374056,39.07715259,4731.9,4731.8,0.02]
[1756034374206,36.63049749,4731.9,4731.8,0.02]
[1756034374398,36.95219086,4731.9,4731.8,0.02]
[1756034374629,31.16234626,4731.9,4731.8,0.02]
[1756034374834,4.70164557,4731.9,4731.8,0.1177]
[1756034375047,4.70164557,4731.9,4731.8,0.02]
[1756034375547,0.96664557,4731.9,4731.8,0.1177]
[1756034375910,4.70064557,4731.9,4731.8,0.1177]
[1756034376347,0.96664557,4731.9,4731.8,0.1177]
[1756034376722,4.70064557,4731.9,4731.8,0.1177]
[1756034377769,0.96664557,4731.9,4731.8,0.1177]
[1756034377931,4.69764557,4731.9,4731.8,0.1177]
[1756034378131,5.00194557,4731.9,4731.8,0.02]
[1756034378448,40.51801473,4731.9,4731.8,0.02]
[1756034378628,40.62361473,4731.9,4731.8,0.02]
[1756034378830,40.62216525,4731.9,4731.8,0.02]
[1756034379563,36.89116525,4731.9,4731.8,0.02]
[1756034379765,40.62116525,4731.9,4731.8,0.02]
[1756034379944,40.29029468,4731.9,4731.8,0.02]
[1756034380675,36.56029468,4731.9,4731.8,0.02]
[1756034380874,40.73982845,4731.9,4731.8,0.02]
[1756034381578,38.42689839,4731.9,4731.8,0.02]
[1756034381778,40.93191821,4731.9,4731.8,0.02]
[1756034382356,41.49389839,4731.9,4731.8,0.02]
[1756034382554,37.76689839,4731.9,4731.8,0.02]
[1756034382750,41.49389839,4731.9,4731.8,0.02]
[1756034383152,41.82473507,4731.9,4731.8,0.02]
[1756034383371,41.06766513,4731.9,4731.8,0.02]
[1756034383675,41.06466513,4731.9,4731.8,0.02]
[1756034384254,41.72466513,4731.9,4731.8,0.02]
[1756034384457,40.45748888,4731.9,4731.8,0.02]
[1756034385189,41.21374583,4731.9,4731.8,0.02]
[1756034385388,36.28778888,4731.9,4731.8,0.02]
[1756034385576,39.70548888,4731.9,4731.8,0.02]
[1756034386192,40.06348888,4731.9,4731.8,0.1177]
[1756034386989,36.34148888,4731.9,4731.8,0.1177]
[1756034387167,40.06148888,4731.9,4731.8,0.1177]
[1756034387489,36.34148888,4731.9,4731.8,0.1177]
[1756034388010,40.06076219,4731.9,4731.8,0.1177]
[1756034388509,40.06088149,4731.9,4731.8,0.1177]
[1756034388997,36.34188149,4731.9,4731.8,0.1177]
[1756034389293,40.05988149,4731.9,4731.8,0.1177]
[1756034389594,39.72904481,4731.9,4731.8,0.1177]
[1756034390177,39.72804481,4731.9,4731.8,0.1177]
[1756034390369,40.29002499,4731.9,4731.8,0.1177]
[1756034391107,36.57326813,4731.9,4731.8,0.1177]
[1756034391351,40.4841675,4731.9,4731.8,0.1177]
[1756034391605,1.38528795,4731.9,4731.8,0.1177]
[1756034391812,4.54415418,4731.9,4731.8,0.58209893]
[1756034392527,4.54315418,4731.9,4731.8,0.58209893]
[1756034393104,0.83015418,4731.9,4731.8,0.58209893]
[1756034393269,4.54315418,4731.9,4731.8,0.58209893]
[1756034393881,4.54215418,4731.9,4731.8,0.02]
[1756034394083,4.99378154,4731.9,4731.8,0.02]
[1756034394271,8.29489157,4731.9,4731.8,0.02]
[1756034394605,9.05439157,4731.9,4731.8,0.02]
[1756034395186,7.99478154,4731.9,4731.8,0.02]
[1756034395386,4.28178154,4731.9,4731.8,0.02]
[1756034395709,4.28178154,4731.9,4731.8,0.1177]
[1756034395883,7.99478154,4731.9,4731.8,0.1177]
[1756034396472,7.99478154,4731.9,4731.8,0.02]
[1756034396894,1.28178154,4731.9,4731.8,0.1177]
[1756034397112,1.28178154,4731.9,4731.8,0.52099893]
[1756034397274,4.99278154,4731.9,4731.8,0.58209893]
[1756034397470,4.79595288,4731.9,4731.8,0.58209893]
[1756034397719,4.99233971,4731.9,4731.8,0.58209893]
[1756034399394,4.99133971,4731.9,4731.8,0.58209893]
[1756034400130,4.53671235,4731.9,4731.8,0.58209893]
[1756034400410,1.28331975,4731.9,4731.8,0.52099893]
[1756034400712,0.83071235,4731.9,4731.8,0.52099893]
[1756034401008,4.53571235,4731.9,4731.8,0.58209893]
[1756034401811,0.93631235,4731.9,4731.8,0.58209893]
[1756034402016,0.1056,4731.9,4731.8,0.58209893]
[1756034402176,0.1056,4731.9,4731.8,4.28509893]
[1756034402380,0.1056,4731.9,4731.8,0.58209893]
[1756034403995,0.1056,4731.9,4731.8,0.02]
[1756034404575,0.1056,4731.9,4731.8,0.1177]
[1756034406091,0.1056,4731.9,4731.8,0.02]
[1756034406816,0.1056,4731.9,4731.8,0.1177]
[1756034408881,0.1056,4731.9,4731.8,0.02]
[1756034409088,0.43636111,4731.9,4731.8,0.02]
[1756034409283,0.8651,4731.9,4731.8,0.02]
[1756034409619,0.1056,4731.9,4731.8,0.1177]
[1756034409793,0.1056,4731.9,4731.8,0.89029893]
[1756034410890,0.1056,4731.9,4731.8,4.58229893]